{"text_format":"1","workbook":"xlsx","n_sheets":4,"sheets":["1.IDP","hoja de vida","Hoja1 (2)","Hoja1"],"not_rendered":{"charts":1,"images":1,"macros":1,"external_links":0,"defined_names":42,"comments":1,"pivot_tables":0},"unopened":[],"bounds":{"document_bytes":16777216,"sheet_cells":100000,"rows_first":2000,"rows_last":500,"rows_between":2000,"halvings":0,"cell_chars":16384,"cell_head_chars":4096},"cells_cut":0,"cells_raw":0,"read":"whole","date_system":"1900"}

{"sheet":"1.IDP","index":0,"n_rows":271,"n_cols":30,"rows_kept":271,"cut":false,"hidden":true,"merged":[[264,2,266,2],[267,2,270,2],[243,2,249,2],[250,2,252,2],[253,2,256,2],[257,2,260,2],[261,2,263,2],[147,2,152,2],[153,2,155,2],[164,2,166,2],[167,2,170,2],[171,2,174,2],[156,2,160,2],[161,2,162,2],[238,2,242,2],[175,2,181,2],[213,2,216,2],[217,2,220,2],[221,2,227,2],[228,2,237,2],[182,2,188,2],[189,2,197,2],[198,2,201,2],[202,2,204,2],[205,2,212,2]]}
[]
[null,null,null,null,null,null,null,null,null,"Corte"]
[null,"PROCESOS","Objetivos","Objetivos Estratégicos","Tipos de Indicadores",null,null,null,null,"MENSUAL"]
[null,"Gestión del Conocimiento ","Gestión del Conocimiento ","1. Fortalecer el sistema de justicia para que sea accesible, oportuno y cercano al ciudadano.","EFICIENCIA",null,null,null,null,"BIMENSUAL"]
[null,"Gestión de la Información y las comunicaciones","Proveer información oportuna, confiable, veraz y accesible a clientes internos y externos del Ministerio de Justicia y del Derecho ","2. Formular y coordinar la política pública en materia de justicia transicional, en el marco de la reconciliación nacional.","EFICACIA",null,null,null,null,"TRIMESTRAL"]
[null,"Gestión de la Relación con los Grupos de Interés","Gestión de la Relación con los Grupos de Interés","3. Liderar la formulación, implementación y seguimiento de las políticas en materia criminal y penitenciaria","ECONOMÍA",null,null,null,null,"CUATRIMESTRAL"]
[null,"Mejora Integral de la Gestión Institucional","Mejora Integral de la Gestión Institucional","4. Consolidar la política integral de drogas, su implementación y evaluación.","CALIDAD",null,null,null,null,"SEMESTRAL"]
[null,"Direccionamiento y Planeación Institucional","Orientar la gestion de la entidad y del sector para que las acciones se deriven de una planeación eficiente y articulada que optimice \nel uso de los recursos en el logro de los objetivos institucionales. ","5. Afianzar una gestión institucional innovadora y ética, soportada en el desarrollo humano y la participación ciudadana.","EFECTIVIDAD",null,null,null,null,"ANUAL"]
[null,"Gestión contra la Criminalidad y la Reincidencia","Gestión contra la Criminalidad y la Reincidencia",null,null,null,null,null,null,"OTRA"]
[null,"Formulación y Seguimiento de las Políticas Públicas","Formulación y Seguimiento de las Políticas Públicas"]
[null,"Formulación y Seguimiento de Proyectos Normativos","Formulación y Seguimiento de Proyectos Normativos"]
[null,"Acceso a la Justicia","Acceso a la Justicia"]
[null,"Fortalecimiento del Principio de Seguridad Jurídica","Fortalecimiento del Principio de Seguridad Jurídica"]
[null,"Gestión Administrativa","Fijar lineamientos, parámetros y actividades requeridas para prestar los servicios de apoyo administrativo y la administración de\nlos bienes devolutivos y de consumo del Ministerio de Justicia y del Derecho."]
[null,"Gestión Financiera","Establecer los insumos, productos o servicios, los procedimientos y los responsables para la gestión, el reconocimiento, registro y  revelación de todos los hechos, transacciones y operaciones financieras, sociales, económicas y ambientales en los que tome \nparte el Ministerio de Justicia y del Derecho, con el fin de brindar información oportuna, confiable, relevante y comprensible para la  toma de decisiones. "]
[null,"Gestión de las Tecnologías y la Información","Optimizar la operación de los procesos del MJD. mediante la gestión efectiva de los recursos tecnológicos, con el fin de brindar una  adecuada disponibilidad de los servicios informáticos que soportan la operación del Ministerio, aplicando las iniciativas estratégicas definidas en las arquitecturas de la organización de Tl, información, aplicaciones y tecnológicas. "]
[null,"Gestión Contractual","Establecer los lineamientos para la selección, suscripción, ejecución y liquidación de contratos en el Ministerio de Justicia y del Derecho, con el fin de suplir las diferentes necesidades de adquisición de bienes y servicios que permitan el cumplimiento de las funciones y competencias que le asigna la Ley a la entidad."]
[null,"Gestión Jurídica","Apoyar a las diferentes dependencias de la Entidad y del Sector Justicia en el cumplimiento de Su función administrativa, emitir conceptos jurídicos, defender y representar juridicamente al Ministerio de Justicia y del Derecho."]
[null,"Gestión Documental","Orientar la realización de las actividades necesarias para garantizar el acceso, la administración y conservación de los documentos producidos y recibidos por la Entidad, en cumplimiento de las disposiciones emanadas por parte del Archivo General de la Nación \"Jorge Palacios Preciado\"."]
[null,"Gestión del Talento Humano","Contar con  personal idoneo y calificado para el ejercicio de las funciones de la entidad, así mismo fortelcer las competencias, habilidades, conocimientos y mejoramiento de la calidad de la vida laboral de los servidores públicos, cumpliendo con todas las disposiciones legales vigentes.",null,null,"Propiciar una Justicia eficaz y eficiente en el marco de una atención integral"]
[null,"Seguimiento y Evaluación","Evaluar y/o hacer seguimiento a la planeación, ejecución y control en la gestión de los procesos (SIG), programas, planes y proyectos del\nMinisterio de Justicia y del Derecho para el mejoramiento continuo de la gestión de la Entidad.",null,null,"Diseñar, coordinar e implementar políticas, planes, programas y proyectos de justicia transicional propiciando la participación de los distintos sectores sociales y con enfoque diferencial"]
[null,null,null,null,null,"Diseñar, coordinar e implementar políticas, planes, programas y proyectos para la prevención, persecución del delito y resocialización del delincuente"]
[null,null,null,null,null,"Diseñar y coordinar las políticas e iniciativas del Estado colombiano para prevenir y controlar la problemáticas de las drogas y actividades relacionadas"]
[null,null,null,{"$f":"+CONCATENATE(PROCES,SUBPROCES)","v":"Adquisición de bienes y servicios"},null,"Garantizar la debida inscripción del derecho a la propiedad y la información inmobiliaria en Colombia"]
[null,null,null,null,null,"Gerencia efectiva y desarrollo institucional"]
[]
[null,"DIRECCIONAMIENTO Y PLANEACIÓN INSTITUCIONALGESTIÓN DE PROYECTOS DEL SECTOR JUSTICIA FINANCIADOS POR ORGANISMOS INTERNACIONALES","Gestionar técnica y administrativamente proyectos y programas de mejoramiento, desarrollo o innovación en la justicia colombiana con financiamiento de organismos internacionales y/o del gobierno de Colombia, de manera eficiente y transparente."]
[null,"DIRECCIONAMIENTO Y PLANEACIÓN INSTITUCIONAL","Orientar la gestión de la entidad y del sector para que las acciones se deriven de una planeación eficiente y articulada que optimice el uso de los recursos en el logro de los objetivos institucionales."]
[null,"GESTIÓN DE LA INFORMACIÓNGESTIÓN DE DATOS","Disponer de los reportes y servicios de información para el cumplimiento de la Misión del Ministerio de Justicia y del Derecho por la\nconsulta a las entidades sectoriales, intersectoriales, internas o externas y el monitoreo de la información pública y disponible"]
[null,"GESTIÓN DE LA INFORMACIÓNSERVICIO AL CIUDADANO","Garantizar la prestación del servicIo al ciudadano o usuario a través de la definición de lineamientos, formulación deestrategias para la atención, trámite y seguimiento a los requerimientos de los ciudadanos o usuarios, propiciando la participación de la ciudadanía y satisfaciendo sus necesidades y expectativas."]
[null,"GESTIÓN DE LA INFORMACIÓN","Proveer información oportuna, confiable, veraz y accesible a clientes internos y externos del Ministerio de Justicia y del Derecho."]
[null,"FORMULACIÓN Y ADOPCIÓN DE POLÍTICAS","Formular los criterios, parámetros o lineamientos generales elegidos para abordar las prioridades de la agenda pública en materia de justicia y\ndel derecho y orientar las decisiones respecto a una necesidad o situación de interés público en las materias de competencia del sector de\nJusticia y del Derecho; hacer seguimiento a las acciones definidas para su implementación o desarrollo y efectuar los ajustes que se requieran."]
[null,"DISEÑO DE NORMAS","Diseñar, elaborar y/o estudiar los actos administrativos de acuerdo con las politicas que orientan el sector Justicia y del Derecho, que sirven de herramienta para cumplir con los objetivos del Ministerio en beneficio de la comunidad y partes interesadas de acuerdo con el ordenamiento jurídico vigente."]
[null,"APLICACIÓN DE POLÍTICAS Y O NORMAS","Estructurar e implementar acciones orientadas a la implementación de estrategias que busquen la promoción y aplicación de las distintas normas y/o políticas que competen al Sector Justicia y del Derecho en el territorio Nacional."]
[null,"APLICACIÓN DE POLÍTICAS Y O NORMASASUNTOS INTERNACIONALES","Coordinar y gestionar las actividades encaminadas a cumplir con los compromisos adquiridos por el Ministerio de Justicia y del Derecho en todo lo concerniente con los temas de asistencia judicial, repatriación y extradiciones en virtud de los convenios internacionales vigentes en materia penal, de manera eficiente."]
[null,"APLICACIÓN DE POLÍTICAS Y O NORMASACCESO A LA JUSTICIA","Incrementar los niveles de acceso a la justicia a través de los Mecanismos Alternativos de Solución de Conflictos y de la aplicación de normas relacionadas con la implementación y el desarrollo de los Programas Nacionales de Conciliación Extrajudicial en Derecho y/o Arbitraje, Centros de Convivencia Ciudadana, Casas de Justicia y Justicia en Equidad."]
[null,"APLICACIÓN DE POLÍTICAS Y O NORMASGESTIÓN TÉCNICA PARA LA GENERACIÓN DE CONOCIMIENTO Y FORTALECIMIENTO DE LA FORMULACIÓN DE LA POLÍTICA DE DROGAS","Orientar la gestión de la Dirección de Política contra las Drogas y Actividades Relacionadas para definr, coordinar y ejecutar actividades, planesy/o proyectos, entre otros, para la generación de conocimiento, evidencia técnica, integración y articulación de la información regional, nacional e internacional en materia del problema de las drogas de forma que se fortalezca la formulación de la política pública de drogas."]
[null,"APLICACIÓN DE POLÍTICAS Y O NORMASFORTALECIMIENTO DEL PRINCIPIO DE SEGURIDAD JURÍDICA","Fortalecer el Principio Constitucional de SeguridadJurídica mediante la defensa del Ordenamiento Jurídico, la formulación de proyectos normativos para depurar el Ordenamiento Jurídico y la divulgación de la normativa colombiana mediante la administración funcional del Sistema Único de Información Normativa SUIN-JURISCOL "]
[null,"INSPECCIÓN, CONTROL Y VIGILANCIA","Realizar seguimiento, control y vigilancia al cumplimiento de requisitos legales y reglamentarios por parte de los Centros de Conciliación y/o Arbitraje, de las Entidades Avaladas para formar Conciliadores, del Sistema Penitenciario y Carcelario, y el Control Administrativo de Sustancias Químicas definidas por el Consejo Nacional de Estupefacientes en el Territorio Nacional."]
[null,"GESTIÓN ADMINISTRATIVA","Fijar lineamientos, parámetros y actividades requeridas para prestar los servicios de apoyo administrativo y la administración de los bienes devolutivos y de consumo del Ministerio de Justicia y del Derecho."]
[null,"GESTIÓN ADMINISTRATIVAGESTIÓN DE BIENES","Fijar lineamientos, parámetros y actividades requeridas para el desarrollo, control, verificación, salvaguarda y administración de los bienes devolutivos y de consumo del Ministerio de Justicia y del Derecho."]
[null,"GESTIÓN ADMINISTRATIVASERVICIOS ADMINISTRATIVOS","Prestar los servicios de apoyo administrativo, para brindar seguridad, condiciones de salubridad y de trabajo a los servidores del Ministerio de Justicia y del Derecho y visitantes del mismo."]
[null,"GESTIÓN FINANCIERA","Establecer los procedimientos, las estancias y responsables para el reconocimiento, registro y revelación de todos los hechos, transacciones y operaciones financieras, sociales, económicas y ambientales en los que tome parte el Ministerio de Justicia y del Derecho, con el fin de brindar información confiable, relevante y comprensible para la toma de decisiones."]
[null,"GESTIÓN DE RECURSOS INFORMATICOS","Optimizar la operación de los procesos del MJD, mediante la gestión efectiva de los recursos tecnológicos, con el fin de brindar una adecuada disponibilidad de los servicios informáticos que soportan la operación del Ministerio, aplicando las iniciativas estratégicas definidas en las arquitecturas de la organización de TI, información, aplicaciones y tecnológicas."]
[null,"GESTIÓN DOCUMENTAL","Gestionar las actividades administrativas, técnicas y tecnológicas tendientes al eficiente, eficaz y efectivo manejo y organización de la documentación producida y recibida por el Ministerio, mediante la generación de directrices y aplicación de metodologias con el objeto de facilitar su utilización y conservación."]
[null,"GESTIÓN DEL TALENTO HUMANO","Contar con personal idóneo y calificado para el ejercicio de las funciones de la entidad, así mismo fortalecer las competencias, habilidades, conocimientos y mejoramiento de la calidad de vida laboral de los servidores públicos, cumpliendo con todas las disposiciones legales vigentes."]
[null,"GESTIÓN DEL TALENTO HUMANOADMINISTRACIÓN DEL TALENTO HUMANO","Contar con personal idóneo y calificado para el cumplimiento de los objetivos institucionales y cumplir con ellos todas las disposiciones legales tendientes a garantizar los derechos laborales desde el punto de vista técnico y humano."]
[null,"GESTIÓN DEL TALENTO HUMANODESARROLLO DEL TALENTO HUMANO","Implementar, desarrollar y fortalecer las competencias, habilidades, conocimientos y mejoramiento de la calidad de vida de los servidores públicos en su ser integral y sus familias."]
[null,"GESTIÓN DEL TALENTO HUMANOGESTIÓN DE ASUNTOS DISCIPLINARIOS","Mantener la disciplina en la entidad a través de la verificación del cumplimiento de los deberes funcionales de los servidores públicos y la imposición de sanciones disciplinarias en Joscasos que lo ameriten de acuerdo a la normatividad vigente en la materia."]
[null,"GESTIÓN CONTRACTUAL","Establecer los lineamientos para la selección, suscripción, ejecución y liquidación de contratos en el Ministerio de Justicia y del Derecho, con el fin de suplir las diferentes necesidades de adquisición de bienes y servicios que permitan el cumplimiento de las funciones y competencias que le asigna la Ley a la entidad."]
[null,"GESTIÓN JURÍDICA","Apoyar a las diferentes dependencias de la Entidad y del Sector Justicia en el cumplimiento de su función administrativa, emitir conceptos juridicos, defender y representar jurídicamente al MJD."]
[null,"GESTIÓN JURÍDICAACTUACIONES ADMINISTRATIVAS","Gestionar la elaboración, revlslon jurídica y aprobación de actuaciones administrativas sometidas a la consideración de la OAJ, asi como la atención a los derechos de petición en sus diferentes modalidades y las Consultas ante la Salsa de Consulta y Servicio Civil del Consejo de Estado en temas del Sector Justicia, que sean de competencia de la Oficina Asesora juridica del Ministerio de Justicia y del Derecho."]
[null,"GESTIÓN JURÍDICADEFENSA JURÍDICA","Defender los derechos e intereses del Ministerio de Justicia y del Derecho gestionando las solicitudes de conciliación extrajudicial, realizando una adecuada defensa judicial y tramitando oportunamente el pago de las sentencias y conciliaciones a cargo de la entidad."]
[null,"SEGUIMIENTO Y EVALUACIÓN","Evaluar y hacer seguimiento a la gestión del Ministerio de Justicia y del Derecho para el mejoramiento continuo del SGI de la entidad."]
[null,"MEJORAMIENTO CONTINUO","Establecer mecanismos que permitan fortalecer la eficacia, eficiencia y efectividad de los procesos que conforman el Sistema Integrado de Gestión a través de la aplicación de acciones de mejoramiento, con el fin de satisfacer las necesidades de nuestros usuarios y mejorar la gestión institucional."]
[]
[]
[]
[]
[]
[]
[null,"DIRECCIONAMIENTO Y PLANEACIÓN INSTITUCIONALGESTIÓN DE PROYECTOS DEL SECTOR JUSTICIA FINANCIADOS POR ORGANISMOS INTERNACIONALES","Oficina de Asuntos Internacionales",null,null,"EFICACIA","Medida del impacto de la gestión tanto en el logro de los resultados planificados, como en el manejo de los recursos utilizados y disponibles."]
[null,"DIRECCIONAMIENTO Y PLANEACIÓN INSTITUCIONAL","Oficina Asesora de Planeación",null,null,"EFICIENCIA","Relación entre el resultado alcanzado y los recursos utilizados."]
[null,"GESTIÓN DE LA INFORMACIÓN","Oficina de Información en Justicia",null,null,"EFECTIVIDAD","Grado en el que se realizan las actividades planificadas y se alcanzan los resultados planificados."]
[null,"GESTIÓN DE LA INFORMACIÓNGESTIÓN DE DATOS","Oficina de Información en Justicia"]
[null,"GESTIÓN DE LA INFORMACIÓNSERVICIO AL CIUDADANO","Grupo de Servicio al Ciudadano."]
[null,"FORMULACIÓN Y ADOPCIÓN DE POLÍTICAS","Viceministerio de Promoción de la Justicia y Viceministerio de Política Criminal y Justicia Restaurativa"]
[null,"DISEÑO DE NORMAS","Viceministerio de Promoción de la Justicia y Viceministerio de Política Criminal y Justicia Restaurativa"]
[null,"APLICACIÓN DE POLÍTICAS Y O NORMAS","Viceministerio de Promoción de la Justicia y Viceministerio de Política Criminal y Justicia Restaurativa"]
[null,"APLICACIÓN DE POLÍTICAS Y O NORMASASUNTOS INTERNACIONALES","Oficina de Asuntos Internacionales"]
[null,"APLICACIÓN DE POLÍTICAS Y O NORMASACCESO A LA JUSTICIA","Dirección de Métodos Alternativos de Solución de Conflíctos"]
[null,"APLICACIÓN DE POLÍTICAS Y O NORMASGESTIÓN TÉCNICA PARA LA GENERACIÓN DE CONOCIMIENTO Y FORTALECIMIENTO DE LA FORMULACIÓN DE LA POLÍTICA DE DROGAS","Dirección de Política Contra las Drogas y Actividades Relacionadas"]
[null,"APLICACIÓN DE POLÍTICAS Y O NORMASFORTALECIMIENTO DEL PRINCIPIO DE SEGURIDAD JURÍDICA","Dirección de Desarrollo del Derecho y del Ordenamiento Jurídico"]
[null,"INSPECCIÓN, CONTROL Y VIGILANCIA","Viceministerio de Promoción de la Justicia y Viceministerio de Política Criminal y Justicia Restaurativa"]
[null,"GESTIÓN ADMINISTRATIVA","Secretaría General"]
[null,"GESTIÓN ADMINISTRATIVAGESTIÓN DE BIENES","Grupo de Gestión Administrativa"]
[null,"GESTIÓN ADMINISTRATIVASERVICIOS ADMINISTRATIVOS","Grupo de Gestión Administrativa"]
[null,"GESTIÓN FINANCIERA","Secretaría General"]
[null,"GESTIÓN DE RECURSOS INFORMATICOS","Subdirección de Sistemas"]
[null,"GESTIÓN DOCUMENTAL","Secretaría General"]
[null,"GESTIÓN DEL TALENTO HUMANO","Secretaría General"]
[null,"GESTIÓN DEL TALENTO HUMANOADMINISTRACIÓN DEL TALENTO HUMANO","Grupo de Gestión del Talento Humano"]
[null,"GESTIÓN DEL TALENTO HUMANODESARROLLO DEL TALENTO HUMANO","Grupo de Gestión del Talento Humano"]
[null,"GESTIÓN DEL TALENTO HUMANOGESTIÓN DE ASUNTOS DISCIPLINARIOS","Grupo de Control Disciplinario Interno "]
[null,"GESTIÓN CONTRACTUAL","Secretaría General"]
[null,"GESTIÓN JURÍDICA","Oficina Asesora Jurídica"]
[null,"GESTIÓN JURÍDICAACTUACIONES ADMINISTRATIVAS","Oficina Asesora Jurídica"]
[null,"GESTIÓN JURÍDICADEFENSA JURÍDICA","Oficina Asesora Jurídica"]
[null,"SEGUIMIENTO Y EVALUACIÓN","Oficina de Control Interno"]
[null,"MEJORAMIENTO CONTINUO","Oficina Asesora de Planeación"]
[]
[]
[]
[null,null,null,{"$f":"VLOOKUP($D$95,$B$97:$C$125,2,0)","v":{"$error":"#N/A"}}]
[null,null,null,{"$f":"+CONCATENATE(PROCES,SUBPROCES)","v":"Adquisición de bienes y servicios"}]
[]
[null,"DIRECCIONAMIENTO Y PLANEACIÓN INSTITUCIONALGESTIÓN DE PROYECTOS DEL SECTOR JUSTICIA FINANCIADOS POR ORGANISMOS INTERNACIONALES","UNO","B"]
[null,"DIRECCIONAMIENTO Y PLANEACIÓN INSTITUCIONAL","DOS","C"]
[null,"GESTIÓN DE LA INFORMACIÓN","TRES","D"]
[null,"GESTIÓN DE LA INFORMACIÓNSERVICIO AL CIUDADANO","CUATRO","E"]
[null,"FORMULACIÓN Y ADOPCIÓN DE POLÍTICAS","CINCO","F"]
[null,"DISEÑO DE NORMAS","SEIS","G"]
[null,"APLICACIÓN DE POLÍTICAS Y O NORMAS","SIETE","H"]
[null,"APLICACIÓN DE POLÍTICAS Y O NORMASASUNTOS INTERNACIONALES","OCHO","I"]
[null,"APLICACIÓN DE POLÍTICAS Y O NORMASACCESO A LA JUSTICIA","NUEVE","J"]
[null,"APLICACIÓN DE POLÍTICAS Y O NORMASGESTIÓN TÉCNICA PARA LA GENERACIÓN DE CONOCIMIENTO Y FORTALECIMIENTO DE LA FORMULACIÓN DE LA POLÍTICA DE DROGAS","DIEZ","K"]
[null,"APLICACIÓN DE POLÍTICAS Y O NORMASFORTALECIMIENTO DEL PRINCIPIO DE SEGURIDAD JURÍDICA","ONCE","L"]
[null,"INSPECCIÓN, CONTROL Y VIGILANCIA","DOCE","M"]
[null,"GESTIÓN ADMINISTRATIVA","TRECE","N"]
[null,"GESTIÓN ADMINISTRATIVAGESTIÓN DE BIENES","CATORCE","O"]
[null,"GESTIÓN ADMINISTRATIVASERVICIOS ADMINISTRATIVOS","QUINCE","P"]
[null,"GESTIÓN FINANCIERA","DIESISEIS","Q"]
[null,"GESTIÓN DE RECURSOS INFORMATICOS","DIESISIETE","R"]
[null,"GESTIÓN DOCUMENTAL","DIESIOCHO","S"]
[null,"GESTIÓN DEL TALENTO HUMANO","DIESINUEVE","T"]
[null,"GESTIÓN DEL TALENTO HUMANOADMINISTRACIÓN DEL TALENTO HUMANO","VEINTE","U"]
[null,"GESTIÓN DEL TALENTO HUMANODESARROLLO DEL TALENTO HUMANO","VEINTIUNO","V"]
[null,"GESTIÓN DEL TALENTO HUMANOGESTIÓN DE ASUNTOS DISCIPLINARIOS","VEINTIDOS","W"]
[null,"GESTIÓN CONTRACTUAL","VEINTITRES","X"]
[null,"GESTIÓN JURÍDICA","VEINTICUATRO","Y"]
[null,"GESTIÓN JURÍDICAACTUACIONES ADMINISTRATIVAS","VEINTICINCO","Z"]
[null,"GESTIÓN JURÍDICADEFENSA JURÍDICA","VEINTISEIS","AA"]
[null,"SEGUIMIENTO Y EVALUACIÓN","VEINTISIETE","AB"]
[null,"MEJORAMIENTO CONTINUO","VEINTIOCHO","AC"]
[null,"GESTIÓN DE LA INFORMACIÓNGESTIÓN DE DATOS","VEINTINUEVE","AD"]
[]
[null,"NOMBRE DE LOS INDICADORES"]
[null,"DIRECCIONAMIENTO Y PLANEACIÓN INSTITUCIONALGESTIÓN DE PROYECTOS DEL SECTOR JUSTICIA FINANCIADOS POR ORGANISMOS INTERNACIONALES","DIRECCIONAMIENTO Y PLANEACIÓN INSTITUCIONAL","GESTIÓN DE LA INFORMACIÓN","GESTIÓN DE LA INFORMACIÓNSERVICIO AL CIUDADANO","FORMULACIÓN Y ADOPCIÓN DE POLÍTICAS","DISEÑO DE NORMAS","APLICACIÓN DE POLÍTICAS Y O NORMAS","APLICACIÓN DE POLÍTICAS Y O NORMASASUNTOS INTERNACIONALES","APLICACIÓN DE POLÍTICAS Y O NORMASACCESO A LA JUSTICIA","APLICACIÓN DE POLÍTICAS Y O NORMASGESTIÓN TÉCNICA PARA LA GENERACIÓN DE CONOCIMIENTO Y FORTALECIMIENTO DE LA FORMULACIÓN DE LA POLÍTICA DE DROGAS","APLICACIÓN DE POLÍTICAS Y O NORMASFORTALECIMIENTO DEL PRINCIPIO DE SEGURIDAD JURÍDICA","INSPECCIÓN, CONTROL Y VIGILANCIA","GESTIÓN ADMINISTRATIVA","GESTIÓN ADMINISTRATIVAGESTIÓN DE BIENES","GESTIÓN ADMINISTRATIVASERVICIOS ADMINISTRATIVOS","GESTIÓN FINANCIERA","GESTIÓN DE RECURSOS INFORMATICOS","GESTIÓN DOCUMENTAL","GESTIÓN DEL TALENTO HUMANO","GESTIÓN DEL TALENTO HUMANOADMINISTRACIÓN DEL TALENTO HUMANO","GESTIÓN DEL TALENTO HUMANODESARROLLO DEL TALENTO HUMANO","GESTIÓN DEL TALENTO HUMANOGESTIÓN DE ASUNTOS DISCIPLINARIOS","GESTIÓN CONTRACTUAL","GESTIÓN JURÍDICA","GESTIÓN JURÍDICAACTUACIONES ADMINISTRATIVAS","GESTIÓN JURÍDICADEFENSA JURÍDICA","SEGUIMIENTO Y EVALUACIÓN","MEJORAMIENTO CONTINUO","GESTIÓN DE LA INFORMACIÓNGESTIÓN DE DATOS"]
[null,"UNO","DOS","TRES","CUATRO","CINCO","SEIS","SIETE","OCHO","NUEVE","DIEZ","ONCE","DOCE","TRECE","CATORCE","QUINCE","DIESISEIS","DIESISIETE","DIESIOCHO","DIESINUEVE","VEINTE","VEINTIUNO","VEINTIDOS","VEINTITRES","VEINTICUATRO","VEINTICINCO","VEINTISEIS","VEINTISIETE","VEINTIOCHO","VEINTINUEVE"]
[null,"Eficacia de gestión contractual (número de contratos suscritos vs número total de contratos previstos)","Solicitudes de registros o actualización de proyectos de inversión tramitadas en el módulo Banco de Programas y Proyectos de Inversión - BPIN del Sistema Unificado de Inversión y Finanzas Públicas - SUIFP","Oportunidad en la respuesta a los requerimientos de información","Percepción del ciudadano frente a la atención recibida por el Grupo de Servicio al Ciudadano","Seguimiento de las acciones de implementación de políticas públicas de com etencia del Ministerio de Justicia del Derecho","Porcentaje de avance de elaboración del proyecto de normas de carácter general",null,"Trámites de repatriación","Atención de solicitudes de autorización para la creación de Centros de Conciliación y/o Arbitraje","Asesoramiento técnico  a los entes territoriales en la implementación de la politica de drogas.","Actualización y cargue de normas en SUIN-JURISCOL","Acciones de Inspección, Control y Vigilancia en Centros de Conciliación y/o Entidades Avaladas",null,"Levantamiento de inventarios individuales","Hojas de vida parque automotor actualizadas","Expedición de Certificados de Disponibilidad Presupuestal","Disponibilidad de los sistemas críticos","Tablas de retención documental actualizadas",null,"Atención de requerimientos de información laboral","Programa de Bienestar Social e Incentivos elaborado y aprobado",null,"Porcentaje de solicitudes de contratación aceptadas – sobre las solicitudes presentadas","Constituir al Ministerio de Justicia y del Derecho como parte en los procesos de Extinción de Dominio que sean identificados por el área y en los cuales le asista interés jurídico para actuar","Actos administrativos elaborados","Atención de demandas contra el MJD","EFICACIA: % De cumplimiento del programa de auditorías","Desempeño del Sistema Integrado de Gestión","Encuesta de satisfaccion de datos entregados por la OIJ"]
[null,"Ejecución presupuestal (presupuesto comprometido vs presupuesto apropiado)","Seguimiento a los resultas del Plan de Acción institucional","Calidad de la información provista","Cumplimiento en la respuesta según los término legales establecidos","Seguimiento a la formulación de políticas públicas",null,null,"Requerimientos en materia de cooperación judicial de autoridades Nacionales y Extranjeras","Atención de solicitudes de Autorización para conocer de los Procedimientos de Insolvencia de la Persona Natural no Comerciante","Desarrollo De Estudios E Investigaciones Sobre Drogas Y Actividades Relacionadas","Porcentaje de avance en la elaboración de proyectos normativo para la depuración del Ordenamiento Juridico, solicitados o planificados","Porcentaje de Centros de Conciliación y/o Entidades Avaladas vigilados SIC/SECIV",null,"Actualización y mantenimiento del movimiento del almacén del MJD","Mantenimiento de los sistemas del MJD (Ascensores, Aire Acondicionado, Respaldo Eléctrico y Electrobombas)","Expedición de Registros Presupuestales","Oportunidad en la atención del soporte requerido","Registro de correspondencia recibida",null,"Trámite de la vinculación de los funcionarios","Programa de Bienestar Social e Incentivos ejecutado","Cumplimiento del término legal de la etapa de indagación preliminar ","Porcentaje de Contratos Suscritos por el MJD – sobre solicitudes de contratación aceptadas por el Grupo de Gestión Contractual","Gestionar y elaborar las acciones de tutela de competencia de la Oficina Asesora Jurídica del Ministerio de Justicia y del Derecho","Consultas tramitadas","Atención de solicitudes de conciliación prejudicial en las que se convoque al MJD","EFECTIVIDAD: Efectividad en la ejecución de las auditorías","Porcentaje de avance en el diseño e implementación del Sistema Integrado de Gestión"]
[null,"Cumplimiento de desembolsos (desembolsos efectivos desembolsos programados)","Seguimiento a la gestión del Plan de Acción institucional","Accesibilidad de la información",null,null,null,null,"Entregas efectivas en extradición","Atención de solicitudes de Otorgamiento de Aval para impartir formación en Conciliación Extrajudicial en Derecho y en Insolvencia de Persona Natural no Comerciante.","Actualizacion Y Publicacion De Informacion Oficial Sobre Drogas En El Portal Del Observatorio De Drogas De Colombia","Porcentaje de intervenciones procesales, coordinaciones o conceptos de no intervención, oportunos, en los procesos de inconstitucionalidad, en los que se ha recibido orden de intervención o no intervención","Optimización del Trámite de autorizaciones ordinarias - CCITE y autorizaciones extraordinarias para el manejo de sustancias y productos químicos controlados",null,"Baja de bienes del inventario del MJD",null,"Modificaciones presupuestales","Satisfacción de las necesidad de los usuarios","Registro de correspondencia externa despachada",null,"Porcentaje de solicitudes de primas técnicas tramitadas","Cobertura Programa de Bienestar Social e Incentivos ejecutado","Cumplimiento del término legal de la etapa de investigación disciplinaria","Porcentaje de Contratos Suscritos por el MJD - sobre los contratos proyectados en el plan de contratación",null,"Derechos de petición atendidos","Gestión de pago de sentencias condenatorias y conciliaciones"]
[null,null,"Trámites de autorización de vigencias futuras realizados","Impacto de las noticias que genera el Ministerio",null,null,null,null,null,"Centros de Convivencia Ciudadana en operación",null,"Porcentaje de sentencias, dictadas en procesos de inconstitucionalidad, en que hubo orden de intervención, que no afectan la vigencia del Ordenamiento Juridico","Informes de visitas a establecimientos penitenciarios y carcelarios",null,null,null,"Registro, actualización y presentación de los estados financieros del Ministerio de Justicia y del Derecho",null,null,null,"Liquidación y trámite de la Nómina","Plan Institucional de Capacitación (PIC) elaborado y aprobado",null,"Porcentaje de Cumplimiento cronogramas iniciales en procesos públicos de selección - sobre solicitudes presentadas",null,"Acciones de Tutela atendidas "]
[null,null,"Trámites de modificación del presupuesto realizados",null,null,null,null,null,null,"Casas de Justicia en operación",null,null,"Porcentaje de centros penitenciarios y carcelarios con diagnósticos elaborados",null,null,null,"Pagos de compromisos",null,null,null,"Comisiones de servicios tramitadas","Plan Institucional de Capacitación (PIC) ejecutado",null,"Porcentaje de cumplimiento en la liquidación de contratos",null,"Ejecutar por vía coactiva las obligaciones a favor del Ministerio de Justicia y del Derecho"]
[null,null,"Tiempo de respuesta a la solicitudes de modificación del presupuesto realizado",null,null,null,null,null,null,"Número de municipios con procesos de fortalecimiento de Conciliación en Equidad",null,null,"Oportunidad en la emisión y envió del concepto técnico sobre la licencia previa de importación al Ministerio de Comercio, Industria y Turismo, a través de la Ventanilla Única de Comercio Exterior (VUCE)",null,null,null,null,null,null,null,"Evaluaciones de desempeño ordinarias consolidadas","Cobertura Plan Institucional de Capacitación (PIC) ejecutado",null,"Medición de la satisfacción de los clientes del proceso de Gestión Contractual"]
[null,null,null,null,null,null,null,null,null,"Número de procesos de implementación de Conciliadores en Equidad avalados",null,null,"Oportunidad en la emisión de las autorizaciones para la exportación que son tramitadas a través de la ventanilla única de comercio exterior (VUCE) ",null,null,null,null,null,null,null,null,"Plan del Sistema de Gestión de la Seguridad y Salud en el Trabajo elaborado y aprobado"]
[null,null,null,null,null,null,null,null,null,null,null,null,"Porcentaje de avance en al ejecución de los proyectos de las líneas estratégicas de la Subdirección de Control y Fiscalización de Sustancias Químicas y Estupefacientes",null,null,null,null,null,null,null,null,"Plan del Sistema de Gestión de la Seguridad y Salud en el Trabajo ejecutado"]
[null,null,null,null,null,null,null,null,null,null,null,null,null,null,null,null,null,null,null,null,null,"Cobertura Plan del Sistema de Gestión de la Seguridad y Salud en el Trabajo ejecutado"]
[]
[]
[]
[]
[]
[]
[]
[]
[]
[null,null,"Direccionamiento y Planeación Institucional","Solicitudes de registros o actualización de proyectos de inversión tramitadas en el módulo Banco de Programas y Proyectos de Inversión - BPIN del Sistema Unificado de Inversión y Finanzas Públicas - SUIFP","Medir el número de solicitudes de registro o actualización de proyectos de inversión tramitadas en el módulo BPIN del sistema SUIFP frente a las requeridas por las dependencias del MJD y las entidades del Sector Administrativo de Justicia y del Derecho"]
[null,null,null,"Seguimiento a los resultas del Plan de Acción institucional","Medir de manera trimestral el avance frente a lo programado del Plan de Acción de las dependencias del MJD en términos de los indicadores (incluyendo las metas de gobierno y del Plan Estratégico Institucional)"]
[null,null,null,"Seguimiento a la gestión del Plan de Acción institucional","Medir de manera trimestral el avance frente a lo programado del Plan de Acción de las dependencias del MJD en términos de las actividades (incluyendo las actividades para el logro de las metas de gobierno y del Plan Estratégico Institucional)"]
[null,null,null,"Trámites de autorización de vigencias futuras realizados","Medir las solicitudes de autorización de vigencias futuras tramitadas frente a los requerimientos de las dependencias del Ministerio de Justicia y del Derecho"]
[null,null,null,"Trámites de modificación del presupuesto realizados","Medir las solicitudes de modificación del presupuesto tramitadas frente a los requerimientos de las dependencias del Ministerio de Justicia y del Derecho"]
[null,null,null,"Trámites de modificación del presupuesto realizados","Medir el tiempo de respuesta de las modificaciones presupuestales solicitadas a la Oficina asesora de Planeación frente a los requerimientos de las dependencias del MJD y las entidades adscritas al Sector"]
[null,null,"GESTIÓN DE PROYECTOS DEL SECTOR JUSTICIA FINANCIADOS POR ORGANISMOS INTERNACIONALES","Eficacia de gestión contractual (número de contratos suscritos vs número total de contratos previstos)","Refleja la eficacia de procesos de contrataciones de acuerdo a lo programado"]
[null,null,null,"Ejecución presupuestal (presupuesto comprometido vs presupuesto apropiado)","Refleja la eficiencia de procesos de contratación y ejecución (y de paso\nreflejaría la calidad de la planeación)"]
[null,null,null,"Cumplimiento de desembolsos (desembolsos efectivos desembolsos programados)","Refleja la calidad de los procesos de contratación y de ejecución de los\ncontratos"]
[null,null,"Gestión de la Información","Oportunidad en la respuesta a los requerimientos de información","Medir la gestión en la respuesta a los requerimientos de información de los peticionarios"]
[null,null,null,"Calidad de la información provista","Determinar la calidad de la información dada a los usuarios del MJD"]
[null,null,null,"Accesibilidad de la información","Determinar la facilidad de acceso a la información generada al interior del Ministerio y del Sector Justicia"]
[null,null,null,"Impacto de las noticias que genera el Ministerio","Medir el impacto ante los usuarios de la información generada por la Entidad"]
[null,null,null,0]
[null,null,"Grupo de Servicio al Ciudadano","Percepción del ciudadano frente a la atención recibida por el Grupo de Servicio al Ciudadano","Medir la percepción del ciudadano o usuario respecto al criterio definido (los criterios pueden ser: respeto, conocimiento del tema, tiempo de respuesta, etc ..)."]
[null,null,null,"Cumplimiento en la respuesta según los término legales establecidos","Determinar el porcentaje de cumplimiento de los términos legales establecidos para la respuesta oportuna a las PQRS."]
[null,null,"GESTIÓN DE LA INFORMACIÓNGESTIÓN DE DATOS","Encuesta de satisfaccion de datos entregados por la OIJ","Mantener un promedio no inferior a 4 puntos en la encuesta de satisfacción de datos recibidos, entregada y respondida por las dependencias del Ministerio de Justicia."]
[null,null,"Formulación y Adopción de Políticas"]
[null,null,null,"Seguimiento de las acciones de implementación de políticas públicas de com etencia del Ministerio de Justicia del Derecho","Medir el avance de las acciones de implementación de políticas públicas de competencia\ndel Ministerio de Justicia del Derecho"]
[null,null,null,"Seguimiento a la formulación de políticas públicas","Medir el avance en la formulación de políticas públicas en materia del sector Justicia y\ndel Derecho"]
[null,null,"Diseño de Normas","Porcentaje de avance de elaboración del proyecto de normas de carácter general","Medir el avance en la elaboración de los proyectos de normas de carácter general del Ministerio"]
[]
[]
[null,null,null,0]
[null,null,"Asuntos Internacionales","Trámites de repatriación","Trasladar las personas condenadas a su país de origen con el fin de que terminen de cumplir la pena que le fue impuesta por la autoridad judicial del país trasladante"]
[null,null,null,"Requerimientos en materia de cooperación judicial de autoridades Nacionales y Extranjeras","Trámite oportuno y en debida forma de las solicitudes de asistencia judicial recibidas."]
[null,null,null,"Entregas efectivas en extradición","Llevar un registro efectivo de personas que han sido extraditados por Colombia."]
[null,null,null,0]
[null,null,"Acceso a la Justicia","Atención de solicitudes de autorización para la creación de Centros de Conciliación y/o Arbitraje","Medir porcentualmente el trámite de atención de las solicitudes recibidas de\nConciliación y/o Arbitraje en el\nperiodo determinado."]
[null,null,null,"Atención de solicitudes de Autorización para conocer de los Procedimientos de Insolvencia de la Persona Natural no Comerciante","Medir porcentualmente el trámite de atención de las solicitudes recibidas de\nautorización para conocer de los \nProcedimientos de Insolvencia de la Persona Natural no Comerciante Natural no Comerciante en el periodo determinado."]
[null,null,null,"Atención de solicitudes de Otorgamiento de Aval para impartir formación en Conciliación Extrajudicial en Derecho y en Insolvencia de Persona Natural no Comerciante.","Medir porcentualmente el trámite de atención de las solicitudes recibidas de\nConciliación Extrajudicial en Derecho y/o en Insolvencia de la Persona Otorgamiento de Aval para impartir formación en el periodo determinado"]
[null,null,null,"Centros de Convivencia Ciudadana en operación","Medir el número de Centros de Convivencia Ciudadana que entran en operación en el periodo determinado."]
[null,null,null,"Casas de Justicia en operación","Medir el número de Casas de Justicia que entran en operación en el periodo determinado."]
[null,null,null,"Número de municipios con procesos de fortalecimiento de Conciliación en Equidad","Medir el número de municipios con procesos de fortalecimiento de Conciliación en Equidad, en el periodo determinado."]
[null,null,null,"Número de procesos de implementación de Conciliadores en Equidad avalados","Medir los procesos de implementación de  Conciliadores en Equidad que han sido avalados por el Ministerio de Justicia y del Derecho, en el periodo determinado."]
[null,null,"Aplicación De Políticas Y O Normasgestión Técnica Para La Generación De Conocimiento Y Fortalecimiento De La Formulación De La Política De Drogas","Asesoramiento técnico  a los entes territoriales en la implementación de la politica de drogas.","Fortalecer a las entidades territoriales para que implementen la política de drogas a través de la coordinación y asesoría de las instancias e instituciones respectivas."]
[null,null,null,"Desarrollo De Estudios E Investigaciones Sobre Drogas Y Actividades Relacionadas","Generar conocimiento y evidencia técnica sobre la problemática de las drogas y actividades relacionadas como insumo que permita la formulación, actualización y aplicación de la política pública en la materia. "]
[null,null,null,"Actualizacion Y Publicacion De Informacion Oficial Sobre Drogas En El Portal Del Observatorio De Drogas De Colombia","Verificar el cumplimiento en la atención de los requerimientos de actualización y/o ajuste de información en el Portal Web del ODC."]
[]
[]
[]
[]
[null,null,"Inspección, Control y Vigilancia","Acciones de Inspección, Control y Vigilancia en Centros de Conciliación y/o Entidades Avaladas","Medir el porcentaje de acciones de inspección, control y vigilancia efectuadas a centros de Conciliación y/o Arbitraje y a las Entidades Avaladas para formar conciliadores"]
[null,null,null,"Porcentaje de Centros de Conciliación y/o Entidades Avaladas vigilados SIC/SECIV","Medir el porcentaje de centros de Conciliación y/o Arbitraje y a las  entidades avaladas para formar conciliadores vigilados virtualmente."]
[null,null,null,"Optimización del Trámite de autorizaciones ordinarias - CCITE y autorizaciones extraordinarias para el manejo de sustancias y productos químicos controlados","Cuantificar el nivel de trámites de CCITE efectivamente adelantados."]
[null,null,null,"Oportunidad en la emisión y envió del concepto técnico sobre la licencia previa de importación al Ministerio de Comercio, Industria y Turismo, a través de la Ventanilla Única de Comercio Exterior (VUCE)","Cuantificar el número de conceptos técnicos emitidos por la Subdirección de Control y Fiscalización de Sustancias Químicas y Estupefacientes  en un tiempo menor al establecido por la norma vigente (Comercio Exterior) "]
[null,null,null,"Oportunidad en la emisión de las autorizaciones para la exportación que son tramitadas a través de la ventanilla única de comercio exterior (VUCE) ","Cuantificar la cantidad de autorizaciones de exportación emitidas frente a las solicitudes recibidas "]
[null,null,null,"Porcentaje de avance en al ejecución de los proyectos de las líneas estratégicas de la Subdirección de Control y Fiscalización de Sustancias Químicas y Estupefacientes","Cuantificar el cumplimiento en el avance en la ejecución de los proyectos "]
[null,null,null,"Informes de visitas a establecimientos penitenciarios y carcelarios","Medir el grado de informes realizados con relación a las visitas realizadas a establecimientos penitenciarios y carcelarios."]
[null,null,null,"Porcentaje de centros penitenciarios y carcelarios con diagnósticos elaborados","Medir el grado de diagnósticos realizados con relación a las visitas realizadas a establecimientos penitenciarios y carcelarios"]
[null,null,null,0]
[null,null,"Gestión de Bienes","Levantamiento de inventarios individuales","Actualizar y verificar la custodia de los bienes devolutivos por responsable de los mismos."]
[null,null,null,"Actualización y mantenimiento del movimiento del almacén del MJD","Generar registros contables confiables de acuerdo al movimiento del almacén,"]
[null,null,null,"Baja de bienes del inventario del MJD","Actualizar los inventarios y generar y depurar los registros contables"]
[null,null,null,0]
[null,null,"Servicios Administrativos","Hojas de vida parque automotor actualizadas","Controlar y verificar el correcto funcionamiento del parque automotor de MJD."]
[null,null,null,"Mantenimiento de los sistemas del MJD (Ascensores, Aire Acondicionado, Respaldo Eléctrico y Electrobombas)","Garantizar la operación de los diferentes sistemas del MJD."]
[null,null,null,0]
[null,null,"Gestión Financiera","Expedición de Certificados de Disponibilidad Presupuestal","Atender oportunamente los requerimientos solicitados de CDP de manera eficaz."]
[null,null,null,"Expedición de Registros Presupuestales","Atender oportunamente los requerimientos solicitados de Registros Presupuestales de manera eficaz."]
[null,null,null,"Modificaciones presupuestales","Atender oportunamente los requerimientos solicitados de Modificaciones presupuestales de manera eficaz"]
[null,null,null,"Registro, actualización y presentación de los estados financieros del Ministerio de Justicia y del Derecho","Entregar oportunamente la información de los estados financieros ante la Contaduría General de la Nación"]
[null,null,null,"Pagos de compromisos","Realizar el pago de oportuno de las obligaciones contraídas por parte del Ministerio."]
[null,null,null,"Incorporación de la desagregación presupuestal","Incorporar oportuna y adecuadamente en el SIIF, la desagregación presupuestal y la totalidad de las modificaciones a esa desagregación"]
[null,null,null,"Constitución de reservas presupuestales y cuentas por pagar","Constituir oportuna y adecuadamente las reservas presupuestales entendidas como la diferencia entre compromisos y obligaciones, y las Cuentas por Pagar, como la diferencia entre las obligaciones y los paqos."]
[null,null,null,0]
[null,null,"Gestión de Recursos Informáticos","Disponibilidad de los sistemas críticos","Medir los tiempos de disponibilidad de los servidores que soportan los servicios críticos del MJD de TI"]
[null,null,null,"Oportunidad en la atención del soporte requerido","Medir el cumplimiento de los acuerdos de nivel de servicio para el soporte al usuario"]
[null,null,null,"Satisfacción de las necesidad de los usuarios","Medir la satisfacción de los usuarios frente a los servicios prestados por el procesos Gestión de recursos informáticos"]
[null,null,null,0]
[null,null,"Gestión Documental","Tablas de retención documental actualizadas","Medir el grado de actualización de las tablas de retención documental en las diferentes unidades de gestión."]
[null,null,null,"Registro de correspondencia recibida","Conocer el porcentaje de documentos que cumplen con el registro en su recepción."]
[null,null,null,"Registro de correspondencia externa despachada","Conocer el porcentaje de documentos externos que efectivamente son despachados a sus respectivos destinos."]
[null,null,null,0]
[null,null,"Administración del Talento Humano","Atención de requerimientos de información laboral","Establecer el grado de cumplimiento en el suministro de certificaciones e información requeridas por los servidores, ex servidores públicos, empresas, entes de control y demás, de manera oportuna, veraz, precisa y efectiva."]
[null,null,null,"Trámite de la vinculación de los funcionarios","Establecer el grado de cumplimiento en la vinculación de funcionarios"]
[null,null,null,"Porcentaje de solicitudes de primas técnicas tramitadas","Establecer el grado de reconocimiento de primas técnicas tramitadas en relación a las solicitudes radicadas."]
[null,null,null,"Liquidación y trámite de la Nómina","Establecer el grado de cumplimiento en la  liquidación mensual de la nómina."]
[null,null,null,"Comisiones de servicios tramitadas","Establecer el grado de cumplimiento en el trámite de las comisiones a nivel nacional e internacional."]
[null,null,null,"Evaluaciones de desempeño ordinarias consolidadas","Establecer el grado de cumplimiento en la consolidación de evaluaciones de desempeño ordinarias de los funcionarios de la entidad"]
[null,null,null,0]
[null,null,"Desarrollo del Talento Humano","Programa de Bienestar Social e Incentivos elaborado y aprobado","Establecer el grado de cumplimiento en la elaboración y aprobación del Programa de Bienestar Social e Incentivos elaborado y aprobado"]
[null,null,null,"Programa de Bienestar Social e Incentivos ejecutado","Medir el grado de cumplimiento en la ejecución de las actividades programadas en el Programa de Bienestar Social e Incentivos"]
[null,null,null,"Cobertura Programa de Bienestar Social e Incentivos ejecutado","Establecer el porcentaje de cobertura del Programa de Bienestar Social e Incentivos, teniendo en cuenta los servidores que se benefician de las actividades programadas."]
[null,null,null,"Plan Institucional de Capacitación (PIC) elaborado y aprobado","Establecer el grado de cumplimiento en la elaboración y aprobación del  Plan Institucional de Capacitación (PIC) elaborado y aprobado"]
[null,null,null,"Plan Institucional de Capacitación (PIC) ejecutado","Medir el grado de cumplimiento en la ejecución de las actividades programadas en el Plan Institucional de Capacitación (PIC) ejecutado"]
[null,null,null,"Cobertura Plan Institucional de Capacitación (PIC) ejecutado","Establecer el porcentaje de cobertura del Plan Institucional de Capacitación (PIC) ejecutado, teniendo en cuenta los servidores que se benefician de las actividades programadas."]
[null,null,null,"Plan del Sistema de Gestión de la Seguridad y Salud en el Trabajo elaborado y aprobado","Establecer el grado de cumplimiento en la elaboración y aprobación del Plan del Sistema de Gestión de la Seguridad y Salud en el Trabajo"]
[null,null,null,"Plan del Sistema de Gestión de la Seguridad y Salud en el Trabajo ejecutado","Medir el grado de cumplimiento en la ejecución de las actividades programadas en el Plan del Sistema de Gestión de la Seguridad y Salud en el Trabajo"]
[null,null,null,"Cobertura Plan del Sistema de Gestión de la Seguridad y Salud en el Trabajo ejecutado","Establecer el porcentaje de cobertura del Plan del Sistema de Gestión de la Seguridad y Salud en el Trabajo, teniendo en cuenta los servidores que se benefician de las actividades programadas."]
[null,null,null,0]
[null,null,"Asuntos Disciplinarios","Índice de quejas e informes de servidores públicos tramitados","Medir el grado de cumplimiento en la atención de las  quejas e informes recibidos por la Coordinación de Asuntos Disciplinarios."]
[null,null,null,"Cumplimiento del término legal de la etapa de indagación preliminar ","Medir la oportunidad en el cumplimiento del término legal para  practicar las pruebas necesarias dentro de la etapa de indagación preliminar.  "]
[null,null,null,"Cumplimiento del término legal de la etapa de investigación disciplinaria","Medir la oportunidad en el cumplimiento del término legal para  practicar las pruebas necesarias dentro de la etapa de investigación disciplinaria.  "]
[null,null,null,"Desarrollo del proceso disciplinario dentro del término de prescripción","Medir el grado de cumplimiento del término legal de prescripción en el desarrollo del proceso disciplinario.  "]
[null,null,null,0]
[null,null,"Gestión Contractual","Porcentaje de solicitudes de contratación aceptadas – sobre las solicitudes presentadas","Medir el cumplimiento de los requisitos establecidos en los manuales sobre las solicitudes de contratación presentadas por todos los procesos"]
[null,null,null,"Porcentaje de Contratos Suscritos por el MJD – sobre solicitudes de contratación aceptadas por el Grupo de Gestión Contractual","Medir la eficacia del proceso contractual en cuanto a la gestión realizada y el resultado obtenido"]
[null,null,null,"Porcentaje de Contratos Suscritos por el MJD - sobre los contratos proyectados en el plan de contratación","Medir la eficiencia de todos los procesos, para satisfacer de manera adecuada las necesidades del MJD"]
[null,null,null,"Porcentaje de Cumplimiento cronogramas iniciales en procesos públicos de selección - sobre solicitudes presentadas","Medir el cumplimiento de los cronogramas iniciales en los proceso públicos adelantados por el MJD"]
[null,null,null,"Porcentaje de cumplimiento en la liquidación de contratos","Medir la eficacia en la liquidación de contratos de acuerdo con los tiempos establecidos por el MJD"]
[null,null,null,"Medición de la satisfacción de los clientes del proceso de Gestión Contractual","Medir la percepción de los clientes frente al acompañamiento de la Gestión Contractual"]
[null,null,null,0]
[null,null,"Gestión Jurídica","Constituir al Ministerio de Justicia y del Derecho como parte en los procesos de Extinción de Dominio que sean identificados por el área y en los cuales le asista interés jurídico para actuar","Intervenir en los procesos de extinción de dominio seleccionados atendiendo a las facultades conferidas en la ley para ello"]
[null,null,null,"Ejecutar por vía coactiva las obligaciones a favor del Ministerio de Justicia y del Derecho","Gestionar vía cobro coactiva las sentencias u obligaciones que constituyen en título ejecutivo y que son de competencia del MJD"]
[null,null,null,"Gestionar y elaborar las acciones de tutela de competencia de la Oficina Asesora Jurídica del Ministerio de Justicia y del Derecho","Establecer las actividades y lineamientos para contestar y efectuar seguimiento a las acciones de tutela instauradas contra el Ministerio de Justicia y del Derecho, de forma eficiente."]
[null,null,"Actuaciones Administrativas","Actos administrativos elaborados","Evaluar la eficacia del manejo de los actos administrativos que hace o revisa el MJD"]
[null,null,null,"Cosultas tramitadas","Evaluar la eficacia del manejo de las consultas tramitadas por el MJD"]
[null,null,null,"Derechos de petición atendidos","Evaluar la eficacia del manejo de los derechos de petición atendidos por el MJD"]
[null,null,null,"Acciones de Tutela atendidas ","Evaluar la eficacia de la respuesta y de atención de la acciones de Tutela de competencia de la Oficina Asesora Jurldica"]
[null,null,"Defensa Jurídica","Atención de demandas contra el MJD","Evaluar cómo es la atención de demandas contra el MJD para la toma de acciones de mejoramiento"]
[null,null,null,"Atención de solicitudes de conciliación prejudicial en las que se convoque al MJD","Evaluar la atención de solicitudes de conciliación prejudicial en las que se convoque al MJD para Ia toma de acciones de mejoramiento"]
[null,null,null,"Gestión de pago de sentencias condenatorias y conciliaciones","Evaluar la gestión del pago de sentencias condenatorias y conciliaciones en el MJD para la toma de acciones de mejoramiento"]
[null,null,null,"Porcentaje de avance en la elaboración de proyectos normativo para la depuración del Ordenamiento Juridico, solicitados o planificados","Elaborar el 100% de los proyectos normativos para la depuración normativa del Ordenamiento Juridico, que se solicitan o planifican"]
[null,null,"Seguimiento y Evaluación","EFICACIA: % De cumplimiento del programa de auditorías","Evidenciar las fortalezas y debilidades de los procesos, procedimientos, actividades, proyectos, operaciones y/o resultados del MJD, realizando las respectivas recomendaciones con la finalidad de lograr el mejoramiento continuo de la Entidad."]
[null,null,null,"EFECTIVIDAD: Efectividad en la ejecución de las auditorías","Lograr que la auditoría de calidad sea el instrumento que permita la mejora continua, tendiente a desarrollar una gestión pública de calidad."]
[null,null,null,0]
[null,null,"Mejoramiento Continuo","Desempeño del Sistema Integrado de Gestión","Establecer el grado de cumplimiento de los objetivos de calidad en el marco del Sistema Integrado de Gestión."]
[null,null,null,"Porcentaje de avance en el diseño e implementación del Sistema Integrado de Gestión","Establecer el avance porcentual  en el diseño y la implementación del Sistema Integrado de Gestión"]
[null,null,null,0]
[null,null,"FORTALECIMIENTO DEL PRINCIPIO DE SEGURIDAD JURÍDICA","Actualización y cargue de normas en SUIN-JURISCOL","Mantener actualizado y cargado el 100% de las normas de rango constitucional, legal y reglamentario, y de carácter general y abstracto, incluidas en la lista de normas a cargar durante el trimestre, en el SUIN-JURISCOL"]
[null,null,null,"Porcentaje de avance en la elaboración de proyectos normativo para la depuración del Ordenamiento Juridico, solicitados o planificados","Elaborar el 100% de los proyectos normativos para la depuración normativa del Ordenamiento Juridico, que se solicitan o planifican"]
[null,null,null,"Porcentaje de intervenciones procesales, coordinaciones o conceptos de no intervención, oportunos, en los procesos de inconstitucionalidad, en los que se ha recibido orden de intervención o no intervención","Realizar oportunamente el 100% de las intervenciones, no intervenciones o coordinaciones procesales ordenadas"]
[null,null,null,"Porcentaje de sentencias, dictadas en procesos de inconstitucionalidad, en que hubo orden de intervención, que no afectan la vigencia del Ordenamiento Juridico","En el 70% de las sentencias proferidas mensualmente en los procesos de inconstitucionalidad, en que hubo orden de intervención, no se afecta la vigencia del Ordenamiento Jurídico"]

{"sheet":"hoja de vida","index":1,"n_rows":64,"n_cols":23,"rows_kept":64,"cut":false,"hidden":false,"merged":[[34,1,34,3],[14,1,14,4],[21,4,21,22],[6,11,6,12],[38,13,39,22],[35,1,35,3],[36,1,36,3],[26,6,26,8],[25,18,25,19],[25,20,25,22],[10,1,10,22],[12,1,12,4],[12,5,12,22],[26,11,26,14],[22,12,22,15],[23,12,23,15],[40,13,49,22],[37,1,37,22],[50,13,51,22],[15,1,15,4],[15,5,15,22],[17,1,17,22],[19,4,19,22],[20,4,20,22],[22,1,23,3],[22,4,22,5],[23,4,23,5],[22,6,22,10],[23,6,23,10],[19,1,19,3],[20,1,20,3],[33,1,33,3],[1,19,1,22],[3,19,3,22],[1,1,3,4],[1,5,3,18],[9,1,9,22],[6,1,6,6],[2,19,2,22],[5,16,5,22],[5,8,5,14],[5,1,5,6],[31,1,31,3],[32,1,32,3],[28,1,28,22],[30,1,30,3],[26,15,26,22],[11,1,11,4],[11,5,11,22],[16,1,16,22],[18,1,18,22],[24,1,24,22],[13,1,13,4],[22,16,22,22],[23,16,23,22],[13,5,13,22],[21,1,21,3],[52,13,53,16],[54,13,56,16],[52,17,53,17],[54,17,56,17],[6,21,6,22],[7,21,7,22],[14,5,14,22],[27,1,27,22],[29,1,29,22],[25,1,25,5],[25,6,25,7],[25,8,25,10],[25,11,25,17],[26,1,26,3],[26,4,26,5],[26,9,26,10],[54,22,56,22],[52,22,53,22],[52,21,53,21],[54,21,56,21],[52,18,53,18],[54,18,56,18],[52,19,53,19],[54,19,56,19],[52,20,53,20],[54,20,56,20]]}
[]
[null,null,null,null,null,"FORMATO: PRESENTACIÓN DE DATOS PARA SEGUIMIENTO Y MEDICIÓN\n\nPROCESO: MEJORAMIENTO CONTINUO",null,null,null,null,null,null,null,null,null,null,null,null,null,"Versión: 1"]
[null,null,null,null,null,null,null,null,null,null,null,null,null,null,null,null,null,null,null,"Fecha: 01/09/2022"]
[null,null,null,null,null,null,null,null,null,null,null,null,null,null,null,null,null,null,null,"Código: MC-F-013"]
[]
[null,"FECHA DE CORTE",null,null,null,null,null,null,"FECHA DE REPORTE",null,null,null,null,null,null,"*","RANGO PORCENTUAL -Depende de la Tendencia"]
[null,null,null,null,null,null,null,null,"Día",null,"Mes",null,null,"Año",null,"Ascendente","Inaceptable","0% - 74,9%","Satisfactorio","75% - 94,9%","Sobresaliente","95% - 100%"]
[null,null,null,null,null,null,null,null,null,null,null,null,null,null,null,"Descendente","Inaceptable","10% o más","Satisfactorio","3%- 9,99%","Sobresaliente","Menor a 3%"]
[]
[null,"1. IDENTIFICACIÓN DEL PROCESO"]
[]
[null,"PROCESO",null,null,null,"Adquisición de bienes y servicios"]
[null,"OBJETIVO DEL PROCESO ",null,null,null,{"$f":"IFERROR(+VLOOKUP(PROCES,Hoja1!B4:C23,2,FALSE),\"\")","v":"Gestionar los trámites precontractuales, contractuales y postcontractuales a través del acompañamiento en las distintas etapas del contrato, con el fin de contribuir a satisfacer las necesidades que la entidad requiera para el cumplimiento de su misión. "}]
[null,"DEPENDENCIA RESPONSABLE DEL SEGUIMIENTO",null,null,null,"OFICINA DE PLANEACIÓN "]
[null,"RESPONSABLE (S) DEL PROCESO ",null,null,null,"GRUPO DE CONTRATACIÓN "]
[null,"OBJETIVOS DE CALIDAD RELACIONADO",null,null,null,"Objetivo RFF2. Mejorar la planificación administrativa y financiera para el suministro oportuno y adecuado de bienes y servicios institucionales "]
[]
[null,"2. IDENTIFICACIÓN DEL INDICADOR"]
[]
[null,"NOMBRE DEL INDICADOR",null,null,"Porcentaje de devoluciones de las solicitudes de compra a través de la tienda virtual del estado colombiano - TVEC"]
[null,"OBJETIVO DEL INDICADOR",null,null,"Medir la completitud y pertinencia de las solicitudes"]
[null,"TENDENCIA"]
[null,"FÓRMULA DEL INDICADOR",null,null,"VARIABLE 1:",null,"Solicitudes Devueltas",null,null,null,null,null,"FUENTE DE INFORMACIÓN",null,null,null,"BASES DE DATOS DE SEGUIMIENTO Y CONTROL A LA GESTIÓN DEL GRUPO DE CONTRATACIÓN"]
[null,null,null,null,"VARIABLE 2:",null,"Solicitudes Revisadas",null,null,null,null,null,"FUENTE DE INFORMACIÓN",null,null,null,"BASES DE DATOS DE SEGUIMIENTO Y CONTROL A LA GESTIÓN DEL GRUPO DE CONTRATACIÓN"]
[]
[null,"FRECUENCIA DE RECOLECCIÓN Y ANÁLISIS DE DATOS",null,null,null,null,null,null,"RESPONSABLE DEL INDICADOR",null,null,null,null,null,null,null,null,null,"LINEA BASE"]
[null,"TIPO DE INDICADOR",null,null,"EFICACIA",null,"META DEL INDICADOR",null,null,0,null,"DESCRIPCIÓN DE LA META",null,null,null,"El indicador tomará el valor de 0% en la medida que no se realicen devoluciones de las solicitudes de compra a publicar en la Tienda Virtual"]
[]
[null,"3. INFORMACIÓN DE GESTIÓN Y ANÁLISIS"]
[]
[null,"CONCEPTO",null,null,"Enero","Febrero","Marzo","1er Trimestre","Abril","Mayo","Junio","2do Trimestre","1er Semestre","Julio","Agosto","Septiembre","3er Trimestre","Octubre","Noviembre","Diciembre","4to Trimestre","2do Semestre","Anual\nAcumulado"]
[null,"Resultado Variable 1",null,null,null,null,null,{"$f":"+IFERROR(SUM(E32:G32),\"\")","v":0},null,null,null,{"$f":"+IFERROR(SUM(I32:K32),\"\")","v":0},{"$f":"IFERROR(SUM(E32:G32,I32:K32),\"\")","v":0},null,null,null,{"$f":"+IFERROR(SUM(N32:P32),\"\")","v":0},0,0,null,{"$f":"+IFERROR(SUM(R32:T32),\"\")","v":0},{"$f":"IFERROR(SUM(N32:P32,R32:T32),\"\")","v":0},{"$f":"IF(SUM(E32,F32,G32,I32,J32,K32,N32,O32,P32,R32,S32,T32)=0,\"\",SUM(E32,F32,G32,I32,J32,K32,N32,O32,P32,R32,S32,T32))","v":""}]
[null,"Resultado Variable 2",null,null,null,null,null,{"$f":"+IFERROR(SUM(E33:G33),\"\")","v":0},null,null,null,{"$f":"+IFERROR(SUM(I33:K33),\"\")","v":0},{"$f":"IFERROR(SUM(E33:G33,I33:K33),\"\")","v":0},null,null,null,{"$f":"+IFERROR(SUM(N33:P33),\"\")","v":0},3,3,null,{"$f":"+IFERROR(SUM(R33:T33),\"\")","v":6},{"$f":"IFERROR(SUM(N33:P33,R33:T33),\"\")","v":6},{"$f":"IF(SUM(E33,F33,G33,I33,J33,K33,N33,O33,P33,R33,S33,T33)=0,\"\",SUM(E33,F33,G33,I33,J33,K33,N33,O33,P33,R33,S33,T33))","v":6}]
[null,"Resultado del Indicador Ascendente",null,null,{"$f":"IF($E$22=\"DESCENDENTE\",\"\",IF($E$22=\"\",\"\",IFERROR(E32/E33,\"\")))","v":""},{"$f":"IF($E$22=\"DESCENDENTE\",\"\",IF($E$22=\"\",\"\",IFERROR(F32/F33,\"\")))","v":""},{"$f":"IF($E$22=\"DESCENDENTE\",\"\",IF($E$22=\"\",\"\",IFERROR(G32/G33,\"\")))","v":""},{"$f":"IF($E$22=\"DESCENDENTE\",\"\",IF($E$22=\"\",\"\",IFERROR(H32/H33,\"\")))","v":""},"","","","","","",{"$f":"IF($E$22=\"DESCENDENTE\",\"\",IF($E$22=\"\",\"\",IFERROR(O32/O33,\"\")))","v":""},{"$f":"IF($E$22=\"DESCENDENTE\",\"\",IF($E$22=\"\",\"\",IFERROR(P32/P33,\"\")))","v":""},{"$f":"IF($E$22=\"DESCENDENTE\",\"\",IF($E$22=\"\",\"\",IFERROR(Q32/Q33,\"\")))","v":""},{"$f":"IF($E$22=\"DESCENDENTE\",\"\",IF($E$22=\"\",\"\",IFERROR(R32/R33,\"\")))","v":""},{"$f":"IF($E$22=\"DESCENDENTE\",\"\",IF($E$22=\"\",\"\",IFERROR(S32/S33,\"\")))","v":""},{"$f":"IF($E$22=\"DESCENDENTE\",\"\",IF($E$22=\"\",\"\",IFERROR(T32/T33,\"\")))","v":""},{"$f":"IF($E$22=\"DESCENDENTE\",\"\",IF($E$22=\"\",\"\",IFERROR(U32/U33,\"\")))","v":""},{"$f":"IF($E$22=\"DESCENDENTE\",\"\",IF($E$22=\"\",\"\",IFERROR(V32/V33,\"\")))","v":""},{"$f":"IF($E$22=\"DESCENDENTE\",\"\",IF($E$22=\"\",\"\",IFERROR(W32/W33,\"\")))","v":""}]
[null,"Resultado del Indicador Descendente",null,null,{"$f":"IF($E$22=\"ASCENDENTE\",\"\",IF($E$22=\"\",\"\",IFERROR(E32/E33,\"\")))","v":""},{"$f":"IF($E$22=\"ASCENDENTE\",\"\",IF($E$22=\"\",\"\",IFERROR(F32/F33,\"\")))","v":""},{"$f":"IF($E$22=\"ASCENDENTE\",\"\",IF($E$22=\"\",\"\",IFERROR(G32/G33,\"\")))","v":""},{"$f":"IF($E$22=\"ASCENDENTE\",\"\",IF($E$22=\"\",\"\",IFERROR(H32/H33,\"\")))","v":""},{"$f":"IF($E$22=\"ASCENDENTE\",\"\",IF($E$22=\"\",\"\",IFERROR(I32/I33,\"\")))","v":""},"","",{"$f":"IF($E$22=\"ASCENDENTE\",\"\",IF($E$22=\"\",\"\",IFERROR(L32/L33,\"\")))","v":""},{"$f":"IF($E$22=\"ASCENDENTE\",\"\",IF($E$22=\"\",\"\",IFERROR(M32/M33,\"\")))","v":""},{"$f":"IF($E$22=\"ASCENDENTE\",\"\",IF($E$22=\"\",\"\",IFERROR(N32/N33,\"\")))","v":""},{"$f":"IF($E$22=\"ASCENDENTE\",\"\",IF($E$22=\"\",\"\",IFERROR(O32/O33,\"\")))","v":""},"",{"$f":"IF($E$22=\"ASCENDENTE\",\"\",IF($E$22=\"\",\"\",IFERROR(Q32/Q33,\"\")))","v":""},{"$f":"IF($E$22=\"ASCENDENTE\",\"\",IF($E$22=\"\",\"\",IFERROR(R32/R33,\"\")))","v":""},"","",{"$f":"IF($E$22=\"ASCENDENTE\",\"\",IF($E$22=\"\",\"\",IFERROR(U32/U33,\"\")))","v":""},{"$f":"IF($E$22=\"ASCENDENTE\",\"\",IF($E$22=\"\",\"\",IFERROR(V32/V33,\"\")))","v":""},{"$f":"IF($E$22=\"ASCENDENTE\",\"\",IF($E$22=\"\",\"\",IFERROR(W32/W33,\"\")))","v":""}]
[null,"Meta para el Periodo",null,null,{"$f":"IF($J$27=\"\",\"\",$J$27)","v":0},{"$f":"IF($J$27=\"\",\"\",$J$27)","v":0},0,0,0,0,0,0,0,0,0,0,0,0,0,0,0,0,0]
[null,"Resultado con Respecto a la Meta",null,null,{"$f":"IF(AND(E34<>\"\",E36<>\"\"),E34/E36,\"\")","v":""},{"$f":"IF(AND(F34<>\"\",F36<>\"\"),F34/F36,\"\")","v":""},"","","",{"$f":"IF(AND(J34<>\"\",J36<>\"\"),J34/J36,\"\")","v":""},"","","","","","","","","","","","",{"$f":"IFERROR(IF(AND(W34=\"\",W36=\"\"),\"\",W34/W36),\"\")","v":""}]
[]
[null,null,null,null,null,null,null,null,null,null,null,null,null,"ANÁLISIS DE RESULTADOS"]
[]
[null,null,null,null,null,null,null,null,null,null,null,null,null,"Para este periodo no se han generado devoluciones,  se aclara que no se reporta la primera devoluci+ón de cada solicitud, se hace desde la segunda en adelante."]
[]
[]
[]
[]
[]
[]
[]
[]
[]
[null,null,null,null,null,null,null,null,null,null,null,null,null,"PROPUESTA DE MEJORAMIENTO "]
[]
[null,null,null,null,null,null,null,null,null,null,null,null,null,"SE ABRE ACCIÓN CORRECTIVA (CUANDO EL RESULTADO DEL INDICADOR SE ENCUENTRA EN SEMAFORO ROJO):",null,null,null,"SI",null,"NO",null,"CONSECUTIVO ACPM"]
[]
[null,null,null,null,null,null,null,null,null,null,null,null,null,"SE ABRE ACCIÓN DE MEJORA (CUANDO EL RESULTADO DEL INDICADOR SE ENCUENTRA EN VERDE PERO SE CONSIDERA NECESARIO):",null,null,null,"SI",null,"NO",null,"CONSECUTIVO ACPM"]
[]
[]
[]
[]
[]
[null,null,null,null,null,"Trimestre 1","Trimestre 2 - Semestre 1","Trimestre 3","Trimestre 4 - Semestre 2","Anual - Acumulado"]
[null,null,null,null,null,{"$f":"+H34","v":""},{"$f":"+L34","v":""},{"$f":"+Q34","v":""},{"$f":"+U34","v":""},{"$f":"+W34","v":""}]
[null,null,null,null,null,{"$f":"+H36","v":0},{"$f":"+L36","v":0},{"$f":"+Q36","v":0},{"$f":"+U36","v":0},{"$f":"+W36","v":0}]
[null,null,null,null,null,{"$f":"+H37","v":""},{"$f":"+L37","v":""},{"$f":"+Q37","v":""},{"$f":"+U37","v":""},{"$f":"+W37","v":""}]

{"sheet":"Hoja1 (2)","index":2,"n_rows":16,"n_cols":1,"rows_kept":16,"cut":false,"hidden":false,"merged":[]}
["INSTRUCTIVO DE LA FICHA DE INDICADORES"]
[]
["El presente formato constituye la referencia de la ficha de indicadores de gestión, ya sean de eficiencia, eficacia, economía, calidad o cualquier otra clasificación"]
[]
["El formato debe ser diligenciado y firmado por quienes sean los responsables del indicador y sus seguimientos. La ficha contiene las siguientes casillas:"]
[]
["Nombre del Indicador: Relacione el nombre del indicador teniendo en cuenta lo expuesto en la Guía "]
["Objetivo del Indicador: Indique la razón por la cual se genera este indicador, cual es su finalidad, por ejemplo hacer seguimiento, realizar verificación de requisitos, este objetivo debe ir alineado con el nombre y la periodicidad"]
["Tendencia: Dependerá del comportamiento esperado del indicador, puede ser ascendente, descendente o neutra."]
["Formula de Calculo: Expresión matemática (generalmente) mediante la cual se muestra la interacción de las variables utilizadas, puede ser una división, multiplicación, suma o una integración de varias operaciones"]
["Fuente de Información: Aquí se debe mencionar las fuentes de todos los datos que permiten el calculo de la formula para llegar al indicador, informes, reportes de estadísticas, entre otras"]
["Frecuencia de Recolección y Análisis de Datos: Hace referencia a la periodicidad con la cual se medirá el indicador, ya sea mensual, bimestral, trimestral, semestral, entre otras"]
["Responsable del Indicador: Es quien se encarga de con los datos de la ficha, realizar la interpretación de la información, en la mayoría de casos es la misma persona responsable de la medición"]
["Línea Base: datos e información que describe la situación previa a una intervención para el desarrollo, surge de datos históricos donde se revisa el comportamiento del indicador. De no haber línea base se sugiere establecer la misma meta"]
["Tipo de Indicador: Corresponde a la tipología mencionada en la Guía según la cual se clasifique el indicador"]
["Meta del Indicador - Descripción de la Meta: Relacione la meta numérica (en porcentaje o números), el plazo de cumplimiento de la meta general y la vigencia de cumplimiento de esta meta general"]

{"sheet":"Hoja1","index":3,"n_rows":28,"n_cols":5,"rows_kept":28,"cut":false,"hidden":true,"merged":[]}
[]
[]
[null,"Columna1","Columna1","Obejtivos de Calidad","AÑO"]
[1,"PROCESOS","OBJETIVOS DEL PROCESO","Objetivo RFF1. Asegurar la disponibilidad de las soluciones tecnológicas para funcionarios y grupos de interés que facilite la actualización de los servicios de la PGN.",2022]
[2,"Direccionamiento y Planeación Institucional","Orientar la gestión de la entidad para que la planeacion estrategica, presupuestal y de los proyectos financiados por la Cooperacion internacional, se articulen de forma eficiente con las necesidades de de las partes interesadas y asi contribuir a una optimización del uso de los recursos en el logro de los objetivos institucionales","Objetivo RFF2. Mejorar la planificación administrativa y financiera para el suministro oportuno y adecuado de bienes y servicios institucionales ",2023]
[3,"Talento Humano","Gestionar la selección, vinculación, desarrollo integral, administración y desvinculación del talento humano mediante la formulación de políticas, planes y programas que contribuyan al cumplimiento de los objetivos estratégicos y la promoción del trabajo digno de los servidores de la Procuraduría General de la Nación de acuerdo con la normatividad vigente.","Objetivo RFF3. Fortalecer la gestión documental para acceder oportunamente a la información producida institucionalmente ",2024]
[4,"Tecnologías de la Información","Definir, gestionar, administrar e implementar los servicios y herramientas de tecnologías de la información, incorporando el componente de innovación y transformación digital, teniendo como base los lineamientos y mejores prácticas de Gobierno de TI, generando alineación con el Plan Estratégico Institucional - PEI de la Entidad y valor a los grupos de valor, a través de herramientas y modelos de mejoramiento continuo tecnológico. ","Objetivo CI1. Consolidar y apropiar el modelo de gestión del conocimiento y la innovación para incrementar la productividad institucional y adaptarse a los cambios del entorno",2025]
[5,"Comunicaciones","Gestionar la comunicación de la Procuraduría General de la Nación con criterios de veracidad, calidad y oportunidad; atendiendo la ley, normatividad vigente, conductos y las directrices que establezca el Despacho del Procurador(a) y/o Viceprocurador(a), para informar a los públicos objetivo, grupos de valor y partes interesadas con los que interactúa la entidad a través de sus diferentes canales, acerca de la gestión institucional que desarrolla.","Objetivo CI2. Consolidar el gerenciamiento del talento humano para incentivar el cumplimiento de las funciones institucionales en cada área de la entidad",2026]
[6,"Conocimiento e Innovación","Gestionar el conocimiento y la innovación en todas sus fases para la Procuraduría General de la Nación, mediante la implementación de acciones, mecanismos e instrumentos a fin de fortalecer la gestión en la entidad.","Objetivo CI3. Fomentar la cultura organizacional para mejorar la coordinación intrainstitucional y promover el sentido de apropiación institucional",2027]
[7,"Disciplinario","Adelantar el procedimiento disciplinario en contra de los sujetos disciplinables, con observancia formal y material de las normas que determinen la ritualidad del proceso en los términos que establece el Código Único Disciplinario y el Código General Disciplinario garantizando la imparcialidad y la transparencia en los resultados de las investigaciones, así como el cumplimiento de sus fines tales como la búsqueda de la verdad material, la garantía de los derechos de las personas que en él intervienen.  ","Objetivo CI4. Implementar el modelo de direccionamiento estratégico basado en riesgos de la gestión pública para contribuir al alcance de resultados y efectos institucionales.",2028]
[8,"Preventivo","Anticipar y evitar la ocurrencia de hechos que afecten los derechos de las personas, mediante la detección y advertencia temprana de riesgos en la gestión pública, la prevención, promoción, garantía y defensa de los derechos colectivos e integrales, la vigilancia del cumplimiento de la normatividad en entidades públicas con competencias constitucionales y legales, con el fin de mitigar y/o restituir derechos que fueron afectados, así como orientar y promover el ejercicio y goce efectivo de los derechos constitucionales","Objetivo M1. Consolidar el trabajo colaborativo de las tres funciones misionales teniendo como enfoque la creación de valor para tener una actuación más anticipatoria y prestar un servicio de calidad a los ciudadanos.",2029]
[9,"Intervención","Actuar en los procesos y asuntos de su competencia, a traves del estudio del expediente y la emisión del concepto, documento o intervención ante autoridades judiciales y/o administrativas, cuando sea necesario en defensa de los derechos y garantías fundamentales del ordenamiento jurídico y del patrimonio público o por solictud del usuario. ","Objetivo M2. Afianzar la articulación interinstitucional del Ministerio Público y otras entidades del Estado para prestar una oferta de servicios integrada y oportuna a la ciudadanía",2030]
[10,"Control Interno Disciplinario","Investigar y/o Sancionar las conductas disciplinables de los servidores y exservidores públicos de la entidad, a través del procedimiento establecido en la Ley, con el fin de preservar el cumplimiento de los principios que rigen la función pública y su correcto ejercicio. ","Objetivo M3. Acercar la PGN a la ciudadanía para el reconocimiento de su propósito misional",2031]
[11,"Administración de Recursos y Seguridad","Administrar, mantener y preservar los bienes muebles e inmuebles de la entidad cubriendo los requerimientos de insumos, bienes muebles, infraestructura, servicios públicos, transporte, protección y seguridad, con el fin de satisfacer las necesidades de operación y bienestar integral de los servidores de la PGN.","Objetivo SE1. Incrementar la credibilidad institucional de la PGN como una entidad referente por su actuación anticipatoria y vital para la efectiva gestión pública.",2032]
[12,"Adquisición de bienes y servicios","Gestionar los trámites precontractuales, contractuales y postcontractuales a través del acompañamiento en las distintas etapas del contrato, con el fin de contribuir a satisfacer las necesidades que la entidad requiera para el cumplimiento de su misión. ","Objetivo SE2. Aumentar la satisfacción de la población en Colombia y de las entidades públicas respecto a los servicios que presta la PGN mediante su actuación cercana, oportuna, transparente e íntegra",2033]
[13,"Documental","Gestionar la documentación y material bibliográfico que genera, recibe, tramita, utiliza, conserva o adquiera la Entidad mediante el establecimiento de lineamientos para el nivel central y territorial, con el propósito de asegurar que la información a proporcionar se mantenga disponible, fiable, completa y legible para su difusión y consulta, desde su origen hasta su destino final en uso del derecho al acceso a la información y de preservación de la memoria histórica de la Procuraduría General de la Nación – PGN-.","Objetivo SE3. Contribuir a la garantía efectiva de derechos y preservación del patrimonio público.",2034]
[14,"Financiera","Planear, analizar, verificar y registrar la ejecución de los recursos presupuestales asignados a la PGN, a traves de la aplicación de lineamientos presupuestales, financieros y contables para garantizar la oportunidad y adecuada administración de estos recursos conforme al marco legal vigente. "]
[15,"Jurídica","Brindar asesoría jurídica al Procurador General de la Nación, al Secretario General y a los demás servidores del nivel directivo de la entidad, en asuntos jurídicos y administrativos que interesen a la misma, absolver las consultas que se le formulen en estas materias y representar judicialmente a la entidad, conforme a lo señalado en el artículo 15 del Decreto 262 de 2000, en cumplimiento de lo establecido en la ley 1755 de 2015 y el artículo 23 de la Constitución Política, con el fin de garantizar una adecuada gestión de sus derechos e intereses.  "]
[16,"Relatoría","Contribuir al mantenimiento de la memoria histórica de la entidad y el cumplimiento de las obligaciones legales, el ejercicio del derecho a la información, la participación ciudadana y la protección de los derechos del habeas data y la intimidad, a través del desarrollo de los procedimientos de recopilación y remisión de información, administración de documentos, publicación de documentos, asesoramiento y construcción de líneas doctrinales, y en general los establecidos en la normatividad relativa al sistema de Relatoría de la PGN, para garantizar elacceso a la información y el ejercicio de los derechos de la ciudadanía. "]
[17,"Atención al Ciudadano","Articular las actividades y canales de atencion a las personas que requieran los servicios que presta la Procuraduria General de la Nacion dentro de su objeto misional, en todos los niveles de la entidad, conforme a criterios de oportunidad, calidad y eficiencia."]
[18,"Evaluación Institucional","Evaluar de forma independiente, oportuna, objetiva e imparcial la efectividad del Sistema de Control Interno, mediante asesorías, acompañamientos, auditorías y seguimientos, que permitan mitigar la materialización de los riesgos que puedan afectar el cumplimiento de los objetivos, aportando elementos de valor que contribuyan con el mejoramiento continuo de la gestión institucional."]
[19,"Mejoramiento Continuo","Administrar de manera permanente la implementación del Sistema de Gestión de la Calidad - SGC, mediante la aplicación de lineamientos de operación y seguimiento; con el fin de asegurar la mejora continua de los procesos y la toma de decisiones frente a la gestión de la entidad."]
[]
[]
[]
[null,null,"ASCENDENTE"]
[null,null,"DESCENDENTE"]
[null,null,"NA"]